{"text_format":"1","workbook":"xlsx","n_sheets":9,"sheets":["Chart1","D3.0","Stats","Chart detailed","Status change flow","Tools","Parameters","Values","Sheet1"],"not_rendered":{"charts":5,"images":1,"macros":1,"external_links":0,"defined_names":4,"comments":0,"pivot_tables":0},"unopened":[{"sheet":"Chart1","index":0,"reason":"not_a_worksheet"},{"sheet":"Chart detailed","index":3,"reason":"not_a_worksheet"}],"bounds":{"document_bytes":16777216,"sheet_cells":100000,"rows_first":2000,"rows_last":500,"rows_between":2000,"halvings":0,"cell_chars":16384,"cell_head_chars":4096},"cells_cut":0,"cells_raw":0,"read":"whole","date_system":"1900"}

{"sheet":"D3.0","index":1,"n_rows":412,"n_cols":31,"rows_kept":412,"cut":false,"hidden":false,"merged":[]}
["Comment\nNumber","TF?/WG/C?","Comment\nStatus","Resolution\nStatus","Commenter\nSatisfaction","Comment\nCategory","Comment\nType","Required","Page #","Clause","Sub-clause","Line #","Comment","Proposed\nChange","Commenter\nName","Commenter\nAffiliation","Commenter\nEmail","Commenter\nPhone","Comment\nResolution","Last modified on","Comment ID","Role","Style","Index #","Classification","Vote","File","Disposition Status","Other1","Other2","Other3"]
["wg-2-2","WG","Resolved","Revised","None","post-deadline","Technical","No",562,14,"14.4.3",2,"There is no extended attribute available today to perform the following management actions:\na) discover the ONU MTU\nb) set the MTU on UNI port(s) in ingress direction. \nThe ONU MTU discovery capability is important for service management purposes, to identify device capability and assess service link MTU capability. The ability to set MTU on UNI ingress is needed to limit MTU on selected links and drop frames that are too large before they ingress the transport network. ","Implement changes per rmtf_1602_hajduczenia_2.pdf","Marek Hajduczenia","Bright House Networks","marek.hajduczenia@mybrighthouse.com","+1-813-465-0669","Implement changes per rmtf_1602_hajduczenia_2.pdf, and change \"Each Ethernet frame with the size exceeding the value of aUniMaxFrameSizeLimit attribute for the given UNI port increments the value of aCountFramesOverLimitDroppedUni and aCountOctetsOverLimitDroppedUni counters\" to\r\n\r\n\"Each Ethernet frame with the size exceeding the value of aUniMaxFrameSizeLimit attribute for the given UNI port is dropped, and the values of counters aCountFramesOverLimitDroppedUni and aCountOctetsOverLimitDroppedUni are incremented.\""]
["wg-2-1","WG","Resolved","Accept","None","post-deadline","Technical","No",583,14,"14.4.3.2.5",28,"There are several issues with attribute 0xD7/0x01-05 for Package A:\n- it is currently associates with PON and UNI ports, whereas it only makes sense to speak of multiple speeds, duplex, flow control, and MDI/MDI-X functionality for UNI ports\n- description speaks of cryptic \"maximum capability\" and \"current capability\", which in reality are \"capability\" and \"current setting\" and should be renamed accordingly in the text\n- Table 14-160 makes reference to eOAM_Set_Response eOAMPDU, but it only makes sense to send 0x00-00 in the Capability field when message is sent from OLT to ONU, i.e., when it is carried in eOAM_Set_Request. eOAM_Set_Response would then carry actual UNI capability","Implement changes per rmtf_1602_hajduczenia_1.pdf","Marek Hajduczenia","Bright House Networks","marek.hajduczenia@mybrighthouse.com","+1-813-465-0669"]
[]
[]
[]
[]
[]
[]
[]
[]
[]
[]
[]
[]
[]
[]
[]
[]
[]
[]
[]
[]
[]
[]
[]
[]
[]
[]
[]
[]
[]
[]
[]
[]
[]
[]
[]
[]
[]
[]
[]
[]
[]
[]
[]
[]
[]
[]
[]
[]
[]
[]
[]
[]
[]
[]
[]
[]
[]
[]
[]
[]
[]
[]
[]
[]
[]
[]
[]
[]
[]
[]
[]
[]
[]
[]
[]
[]
[]
[]
[]
[]
[]
[]
[]
[]
[]
[]
[]
[]
[]
[]
[]
[]
[]
[]
[]
[]
[]
[]
[]
[]
[]
[]
[]
[]
[]
[]
[]
[]
[]
[]
[]
[]
[]
[]
[]
[]
[]
[]
[]
[]
[]
[]
[]
[]
[]
[]
[]
[]
[]
[]
[]
[]
[]
[]
[]
[]
[]
[]
[]
[]
[]
[]
[]
[]
[]
[]
[]
[]
[]
[]
[]
[]
[]
[]
[]
[]
[]
[]
[]
[]
[]
[]
[]
[]
[]
[]
[]
[]
[]
[]
[]
[]
[]
[]
[]
[]
[]
[]
[]
[]
[]
[]
[]
[]
[]
[]
[]
[]
[]
[]
[]
[]
[]
[]
[]
[]
[]
[]
[]
[]
[]
[]
[]
[]
[]
[]
[]
[]
[]
[]
[]
[]
[]
[]
[]
[]
[]
[]
[]
[]
[]
[]
[]
[]
[]
[]
[]
[]
[]
[]
[]
[]
[]
[]
[]
[]
[]
[]
[]
[]
[]
[]
[]
[]
[]
[]
[]
[]
[]
[]
[]
[]
[]
[]
[]
[]
[]
[]
[]
[]
[]
[]
[]
[]
[]
[]
[]
[]
[]
[]
[]
[]
[]
[]
[]
[]
[]
[]
[]
[]
[]
[]
[]
[]
[]
[]
[]
[]
[]
[]
[]
[]
[]
[]
[]
[]
[]
[]
[]
[]
[]
[]
[]
[]
[]
[]
[]
[]
[]
[]
[]
[]
[]
[]
[]
[]
[]
[]
[]
[]
[]
[]
[]
[]
[]
[]
[]
[]
[]
[]
[]
[]
[]
[]
[]
[]
[]
[]
[]
[]
[]
[]
[]
[]
[]
[]
[]
[]
[]
[]
[]
[]
[]
[]
[]
[]
[]
[]
[]
[]
[]
[]
[]
[]
[]
[]
[]
[]
[]
[]
[]
[null,null,null,null,null,null,null,null,null,{"$f":"get_Clause_assignment(K375)","v":""}]
[null,null,null,null,null,null,null,null,null,""]
[null,null,null,null,null,null,null,null,null,""]
[null,null,null,null,null,null,null,null,null,{"$f":"get_Clause_assignment(K378)","v":""}]
[null,null,null,null,null,null,null,null,null,""]
[null,null,null,null,null,null,null,null,null,""]
[null,null,null,null,null,null,null,null,null,""]
[null,null,null,null,null,null,null,null,null,""]
[null,null,null,null,null,null,null,null,null,""]
[null,null,null,null,null,null,null,null,null,""]
[null,null,null,null,null,null,null,null,null,""]
[null,null,null,null,null,null,null,null,null,""]
[null,null,null,null,null,null,null,null,null,""]
[null,null,null,null,null,null,null,null,null,""]
[null,null,null,null,null,null,null,null,null,""]
[null,null,null,null,null,null,null,null,null,""]
[null,null,null,null,null,null,null,null,null,""]
[null,null,null,null,null,null,null,null,null,""]
[null,null,null,null,null,null,null,null,null,""]
[null,null,null,null,null,null,null,null,null,""]
[null,null,null,null,null,null,null,null,null,""]
[null,null,null,null,null,null,null,null,null,""]
[null,null,null,null,null,null,null,null,null,""]
[null,null,null,null,null,null,null,null,null,""]
[null,null,null,null,null,null,null,null,null,""]
[null,null,null,null,null,null,null,null,null,""]
[null,null,null,null,null,null,null,null,null,""]
[null,null,null,null,null,null,null,null,null,""]
[null,null,null,null,null,null,null,null,null,""]
[null,null,null,null,null,null,null,null,null,""]
[null,null,null,null,null,null,null,null,null,""]
[null,null,null,null,null,null,null,null,null,""]
[null,null,null,null,null,null,null,null,null,""]
[null,null,null,null,null,null,null,null,null,""]
[null,null,null,null,null,null,null,null,null,""]
[null,null,null,null,null,null,null,null,null,""]
[null,null,null,null,null,null,null,null,null,""]
[null,null,null,null,null,null,null,null,null,""]

{"sheet":"Stats","index":2,"n_rows":22,"n_cols":7,"rows_kept":22,"cut":false,"hidden":false,"merged":[]}
[null,"E","ER","T","TR",null,"Totals"]
[0,{"$f":"get_Stats($A2,B$1)","v":0},0,0,0,null,{"$f":"SUM(B2:F2)","v":0}]
[99,0,0,0,0,null,{"$f":"SUM(B3:F3)","v":0}]
[1,0,0,0,0,null,{"$f":"SUM(B4:E4)","v":0}]
[2,0,0,0,0,null,0]
[3,0,0,0,0,null,0]
[4,0,0,0,0,null,0]
[5,0,0,0,0,null,0]
[6,0,0,0,0,null,0]
[7,0,0,0,0,null,0]
[8,0,0,0,0,null,0]
[null,null,null,null,null,null,{"$f":"SUM(G2:G11)","v":0}]
["Totals",{"$f":"SUM(B2:B11)","v":0},{"$f":"SUM(C2:C11)","v":0},{"$f":"SUM(D2:D11)","v":0},{"$f":"SUM(E2:E11)","v":0},{"$f":"SUM(B13:E13)","v":0},{"$f":"IF(F13=G12,\"OK\",\"ERROR\")","v":"OK"}]
[]
["TFs","Conformance1","Conformance2","Conformance3"]
["All",{"$f":"SUM(G2:G7,G8:G8)","v":0},{"$f":"SUM(G9:G10)","v":0},{"$f":"SUM(G11)","v":0}]
["E",{"$f":"SUM(B2:B7,B8:B8)","v":0},{"$f":"SUM(B9:B10)","v":0},{"$f":"SUM(B11)","v":0}]
["ER",{"$f":"SUM(C2:C7,C8:C8)","v":0},{"$f":"SUM(C9:C10)","v":0},{"$f":"SUM(C11)","v":0}]
["T",{"$f":"SUM(D2:D7,D8:D8)","v":0},{"$f":"SUM(D9:D10)","v":0},{"$f":"SUM(D11)","v":0}]
["TR",{"$f":"SUM(E2:E7,E8:E8)","v":0},{"$f":"SUM(E9:E10)","v":0},{"$f":"SUM(E11)","v":0}]
["E+ER",{"$f":"SUM(B17:B18)","v":0},{"$f":"SUM(C17:C18)","v":0},0]
["T+TR",{"$f":"SUM(B19:B20)","v":0},{"$f":"SUM(C19:C20)","v":0},0]

{"sheet":"Status change flow","index":4,"n_rows":6,"n_cols":2,"rows_kept":6,"cut":false,"hidden":false,"merged":[[1,0,1,1]]}
[]
["Legend"]
[]
["CS","Comment Status"]
["CC","Commenter Satisfaction"]
["RS","Response Status"]

{"sheet":"Tools","index":5,"n_rows":1,"n_cols":1,"rows_kept":1,"cut":false,"hidden":false,"merged":[]}
["Sponsor Ballot Tools"]

{"sheet":"Parameters","index":6,"n_rows":50,"n_cols":8,"rows_kept":50,"cut":false,"hidden":true,"merged":[]}
[10000,"TF1","New","AIP","Satisfied","Technical","Yes",50]
[null,"TF2","Incomplete","Accept","Unsatisfied","Editorial","No",49]
[null,"TF3","Postponed","Reject",null,null,null,48]
[null,"TF4","Resolved",null,null,null,null,47]
[null,"WG","Withdrawn",null,null,null,null,46]
[null,null,"Proposed",null,null,null,null,45]
[null,null,"Closed",null,null,null,null,44]
[null,null,null,null,null,null,null,43]
[null,null,null,null,null,null,null,42]
[null,null,null,null,null,null,null,41]
[null,null,null,null,null,null,null,40]
[null,null,null,null,null,null,null,39]
[null,null,null,null,null,null,null,38]
[null,null,null,null,null,null,null,37]
[null,null,null,null,null,null,null,36]
[null,null,null,null,null,null,null,35]
[null,null,null,null,null,null,null,34]
[null,null,null,null,null,null,null,33]
[null,null,null,null,null,null,null,32]
[null,null,null,null,null,null,null,31]
[null,null,null,null,null,null,null,30]
[null,null,null,null,null,null,null,29]
[null,null,null,null,null,null,null,28]
[null,null,null,null,null,null,null,27]
[null,null,null,null,null,null,null,26]
[null,null,null,null,null,null,null,25]
[null,null,null,null,null,null,null,24]
[null,null,null,null,null,null,null,23]
[null,null,null,null,null,null,null,22]
[null,null,null,null,null,null,null,21]
[null,null,null,null,null,null,null,20]
[null,null,null,null,null,null,null,19]
[null,null,null,null,null,null,null,18]
[null,null,null,null,null,null,null,17]
[null,null,null,null,null,null,null,16]
[null,null,null,null,null,null,null,15]
[null,null,null,null,null,null,null,14]
[null,null,null,null,null,null,null,13]
[null,null,null,null,null,null,null,12]
[null,null,null,null,null,null,null,11]
[null,null,null,null,null,null,null,10]
[null,null,null,null,null,null,null,9]
[null,null,null,null,null,null,null,8]
[null,null,null,null,null,null,null,7]
[null,null,null,null,null,null,null,6]
[null,null,null,null,null,null,null,5]
[null,null,null,null,null,null,null,4]
[null,null,null,null,null,null,null,3]
[null,null,null,null,null,null,null,2]
[null,null,null,null,null,null,null,1]

{"sheet":"Values","index":7,"n_rows":25,"n_cols":7,"rows_kept":25,"cut":false,"hidden":true,"merged":[]}
["None","None","WG","None","Technical","Yes",0]
["New","AIP","TF1","Satisfied","Editorial","No",1]
["Proposed","Accept","TF2","Unsatisfied",null,null,2]
["Postponed","Reject","TF3","TBD",null,null,3]
["Incomplete",null,"TF4",null,null,null,4]
["Withdrawn",null,"TF5",null,null,null,"4A"]
["Resolved",null,null,null,null,null,"4B"]
[null,null,null,null,null,null,"4C"]
[null,null,null,null,null,null,5]
[null,null,null,null,null,null,"5A"]
[null,null,null,null,null,null,6]
[null,null,null,null,null,null,7]
[null,null,null,null,null,null,"7A"]
[null,null,null,null,null,null,8]
[null,null,null,null,null,null,9]
[null,null,null,null,null,null,"9A"]
[null,null,null,null,null,null,"9B"]
[null,null,null,null,null,null,10]
[null,null,null,null,null,null,"10A"]
[null,null,null,null,null,null,11]
[null,null,null,null,null,null,12]
[null,null,null,null,null,null,13]
[null,null,null,null,null,null,"13A"]
[null,null,null,null,null,null,14]
[null,null,null,null,null,null,99]

{"sheet":"Sheet1","index":8,"n_rows":276,"n_cols":1,"rows_kept":276,"cut":false,"hidden":false,"merged":[]}
[127]
[80]
[129]
[206]
[206]
[206]
[205]
[67]
[127]
[127]
[127]
[127]
[169]
[169]
[169]
[169]
[169]
[123]
[169]
[169]
[165]
[167]
[167]
[168]
[168]
[168]
[168]
[69]
[98]
[115]
[42]
[47]
[80]
[81]
[81]
[81]
[82]
[61]
[83]
[83]
[83]
[83]
[84]
[84]
[84]
[84]
[84]
[84]
[89]
[67]
[85]
[87]
[87]
[87]
[87]
[55]
[88]
[88]
[89]
[89]
[89]
[90]
[91]
[91]
[91]
[91]
[92]
[93]
[93]
[93]
[95]
[21]
[95]
[96]
[96]
[96]
[96]
[96]
[96]
[96]
[97]
[97]
[98]
[98]
[99]
[104]
[107]
[107]
[107]
[107]
[107]
[108]
[108]
[108]
[107]
[109]
[109]
[109]
[111]
[111]
[112]
[112]
[116]
[117]
[55]
[55]
[55]
[55]
[56]
[56]
[56]
[56]
[55]
[48]
[71]
[49]
[40]
[51]
[49]
[123]
[46]
[126]
[112]
[62]
[62]
[112]
[112]
[112]
[112]
[47]
[48]
[47]
[47]
[47]
[48]
[49]
[49]
[40]
[40]
[41]
[41]
[48]
[48]
[102]
[47]
[110]
[51]
[52]
[113]
[114]
[111]
[52]
[114]
[115]
[114]
[42]
[113]
[53]
[115]
[111]
[180]
[53]
[53]
[53]
[53]
[54]
[54]
[54]
[84]
[84]
[87]
[88]
[88]
[86]
[102]
[102]
[103]
[103]
[103]
[104]
[104]
[26]
[38]
[48]
[50]
[67]
[67]
[57]
[57]
[57]
[60]
[54]
[178]
[178]
[178]
[179]
[179]
[178]
[46]
[141]
[141]
[139]
[141]
[32]
[75]
[76]
[76]
[76]
[77]
[92]
[92]
[92]
[84]
[54]
[85]
[85]
[24]
[24]
[80]
[80]
[81]
[82]
[83]
[89]
[90]
[91]
[93]
[46]
[45]
[96]
[95]
[95]
[95]
[97]
[97]
[98]
[99]
[99]
[99]
[101]
[105]
[105]
[105]
[62]
[111]
[111]
[114]
[115]
[104]
[118]
[56]
[46]
[46]
[108]
[91]
[92]
[50]
[69]
[191]
[53]
[28]
[52]
[47]
[47]
[42]
[117]
[118]
[118]
[118]
[120]
[121]
[122]
[109]
[98]
[82]
[123]